fUST/lending_fUST_20240813
["ID","MTS","AMOUNT","RATE_DAILY","PERIOD"]
[334775261,1723547451178,-500.0,0.00013698,2]
[334775262,1723547451187,-515.05213383,0.00013698,2]
[334775263,1723547451196,-545.63,0.00013698,2]
[334775264,1723547451206,-500.0,0.00013698,2]
[334775265,1723547451215,-190.649341,0.00013698,2]
[334775266,1723547451225,-1095.67,0.00013698,2]
[334775267,1723547451234,-190.649341,0.00013698,2]
[334775268,1723547451244,-1703.11,0.00013698,2]
[334775269,1723547451254,-190.649341,0.00013698,2]
[334775270,1723547451263,-190.649341,0.00013698,2]
[334775271,1723547451272,-883.51,0.00013698,2]
[334775272,1723547451282,-553.9254321,0.00013698,2]
[334775273,1723547451291,-190.649341,0.00013698,2]
[334775274,1723547451300,-190.649341,0.00013698,2]
[334775275,1723547451311,-722.57,0.00013698,2]
[334775276,1723547451320,-190.649341,0.00013698,2]
[334775277,1723547451329,-190.649341,0.00013698,2]
[334775278,1723547451338,-1262.86,0.00013698,2]
[334775279,1723547451348,-500.0,0.00013698,2]
[334775280,1723547451358,-500.0,0.00013698,2]
[334775281,1723547451367,-1957.65,0.00013698,2]
[334775282,1723547451376,-500.0,0.00013698,2]
[334775283,1723547451388,-500.0,0.00013698,2]
[334775284,1723547451398,-627.53,0.00013698,2]
[334775285,1723547451408,-500.0,0.00013698,2]
[334775286,1723547451417,-6324.26,0.00013698,2]
[334775287,1723547451427,-502.55693021,0.00013698,2]
[334775288,1723547451439,-508.09704504,0.00013698,2]
[334775289,1723547451449,-502.39977827,0.00013698,2]
[334775290,1723547451458,-500.0,0.00013698,2]
[334775291,1723547451468,-564.12758029,0.00013698,2]
[334775292,1723547451478,-500.0,0.00013698,2]
[334775293,1723547451488,-500.0,0.00013698,2]
[334775294,1723547451498,-300.96958541,0.00013698,2]
[334775295,1723547451507,-501.03037611,0.00013698,2]
[334775296,1723547451517,-1284.41,0.00013698,2]
[334775297,1723547451526,-500.0,0.00013698,2]
[334775298,1723547451536,-514.45262368,0.00013698,2]
[334775299,1723547451545,-851.53,0.00013698,2]
[334775300,1723547451555,-500.0,0.00013698,2]
[334775301,1723547451564,-500.0,0.00013698,2]
[334775302,1723547451574,-500.0,0.00013698,2]
[334775303,1723547451584,-500.0,0.00013698,2]
[334775304,1723547451594,-503.56450761,0.00013698,2]
[334775305,1723547451604,-500.0,0.00013698,2]
[334775306,1723547451613,-1747.47,0.00013698,2]
[334775307,1723547451623,-1140.06,0.00013698,2]
[334775308,1723547451633,-500.0,0.00013698,2]
[334775309,1723547451642,-500.0,0.00013698,2]
[334775310,1723547451652,-500.0,0.00013698,2]
[334775311,1723547451662,-161.654081,0.00013698,2]
[334775312,1723547451671,-161.654081,0.00013698,2]
[334775313,1723547451681,-745.88,0.00013698,2]
[334775314,1723547451691,-161.654081,0.00013698,2]
[334775315,1723547451701,-503.24555776,0.00013698,2]
[334775316,1723547451711,-500.0,0.00013698,2]
[334775317,1723547451721,-161.654081,0.00013698,2]
[334775318,1723547451731,-161.654081,0.00013698,2]
[334775319,1723547451742,-500.0,0.00013698,2]
[334775320,1723547451752,-161.654075,0.00013698,2]
[334775321,1723547451761,-689.79,0.00013698,2]
[334775322,1723547451771,-509.83521635,0.00013698,2]
[334775323,1723547451781,-689.96,0.00013698,2]
[334775324,1723547451791,-500.0,0.00013698,2]
[334775325,1723547451800,-500.0,0.00013698,2]
[334775326,1723547451810,-502.15039408,0.00013698,2]
[334775327,1723547451819,-500.0,0.00013698,2]
[334775328,1723547451829,-575.467611,0.00013698,2]
[334775329,1723547451838,-575.467611,0.00013698,2]
[334775330,1723547451848,-575.467611,0.00013698,2]
[334775331,1723547451858,-3582.61,0.00013698,2]
[334775332,1723547451867,-3334.23,0.00013698,2]
[334775333,1723547451876,-575.467611,0.00013698,2]
[334775334,1723547451886,-500.0,0.00013698,2]
[334775335,1723547451896,-575.467611,0.00013698,2]
[334775336,1723547451907,-575.467617,0.00013698,2]
[334775337,1723547451916,-667.22,0.00013698,2]
[334775338,1723547451926,-642.24,0.00013698,2]
[334775339,1723547451936,-502.8470233,0.00013698,2]
[334775340,1723547451946,-500.0,0.00013698,2]
[334775341,1723547451956,-1034.17,0.00013698,2]
[334775342,1723547451966,-500.0,0.00013698,2]
[334775343,1723547451976,-503.6887129,0.00013698,2]
[334775344,1723547451987,-500.0,0.00013698,2]
[334775345,1723547451997,-507.85492179,0.00013698,2]
[334775346,1723547452006,-500.0,0.00013698,2]
[334775347,1723547452016,-500.0,0.00013698,2]
[334775348,1723547452026,-500.0,0.00013698,2]
[334775349,1723547452036,-500.6539124,0.00013698,2]
[334775350,1723547452046,-1406.5,0.00013698,2]
[334775351,1723547452056,-500.0,0.00013698,2]
[334775352,1723547452067,-700.69,0.00013698,2]
[334775353,1723547452076,-579.8,0.00013698,2]
[334775354,1723547452086,-500.0,0.00013698,2]
[334775355,1723547452096,-529.95635248,0.00013698,2]
[334775356,1723547452106,-286.74941357,0.00013698,2]
[334775357,1723547452116,-500.0,0.00013698,2]
[334775358,1723547452126,-500.0,0.00013698,2]
[334775359,1723547452136,-505.9565507,0.00013698,2]
[334775360,1723547452146,-500.0,0.00013698,2]
[334775361,1723547452156,-3670.75,0.00013698,2]
[334775362,1723547452165,-501.91736511,0.00013698,2]
[334775363,1723547452175,-500.0,0.00013698,2]
[334775364,1723547452185,-505.27,0.00013698,2]
[334775365,1723547452195,-489.56585524,0.00013698,2]
[334775366,1723547452204,-500.0,0.00013698,2]
[334775367,1723547452214,-503.34967199,0.00013698,2]
[334775368,1723547452224,-500.0,0.00013698,2]
[334775369,1723547452234,-844.29,0.00013698,2]
[334775370,1723547452244,-925.22,0.00013698,2]
[334775371,1723547452254,-510.88917413,0.00013698,2]
[334775372,1723547452264,-626.5,0.00013698,2]
[334775373,1723547452274,-1276.6,0.00013698,2]
[334775374,1723547452284,-505.50713472,0.00013698,2]
[334775375,1723547452294,-500.0,0.00013698,2]
[334775376,1723547452304,-505.22362471,0.00013698,2]
[334775377,1723547452313,-500.0,0.00013698,2]
[334775378,1723547452323,-500.0,0.00013698,2]
[334775379,1723547452334,-151.0,0.00013699,2]
[334775380,1723547452344,-151.0,0.00013699,2]
[334775381,1723547452355,-151.0,0.00013699,2]
[334775382,1723547452364,-151.0,0.00013699,2]
[334775383,1723547452374,-151.0,0.00013699,2]
[334775384,1723547452384,-151.0,0.00013699,2]
[334775385,1723547452398,-151.0,0.00013699,2]
[334775386,1723547452407,-151.0,0.00013699,2]
[334775387,1723547452417,-151.0,0.00013699,2]
[334775388,1723547452427,-151.0,0.00013699,2]
[334775389,1723547452438,-151.0,0.00013699,2]
[334775390,1723547452447,-151.0,0.00013699,2]
[334775391,1723547452457,-151.0,0.00013699,2]
[334775392,1723547452469,-151.0,0.00013699,2]
[334775393,1723547452480,-151.0,0.00013699,2]
[334775394,1723547452491,-151.0,0.00013699,2]
[334775395,1723547452501,-151.0,0.00013699,2]
[334775396,1723547452510,-281.633054,0.00013699,2]
[334775397,1723547452520,-24672.8748664,0.00013699,2]
[334775398,1723547452531,-4693.272496,0.00013699,2]
[334775399,1723547452541,-3000.0,0.00013699,2]
[334775400,1723547452551,-1000.0,0.00013699,2]
[334775401,1723547452561,-1000.0,0.00013699,2]
[334775402,1723547452570,-1000.0,0.00013699,2]
[334775403,1723547452581,-1000.0,0.00013699,2]
[334775404,1723547452591,-1000.0,0.00013699,2]
[334775405,1723547452601,-1000.0,0.00013699,2]
[334775406,1723547452610,-1000.0,0.00013699,2]
[334775407,1723547452620,-1000.0,0.00013699,2]
[334775408,1723547452630,-1000.0,0.00013699,2]
[334775409,1723547452640,-1000.0,0.00013699,2]
[334775410,1723547452650,-1000.0,0.00013699,2]
[334775411,1723547452659,-1000.0,0.00013699,2]
[334775412,1723547452669,-1000.0,0.00013699,2]
[334775413,1723547452680,-1000.0,0.00013699,2]
[334775414,1723547452690,-1000.0,0.00013699,2]
[334775415,1723547452699,-1000.0,0.00013699,2]
[334775416,1723547452709,-1000.0,0.00013699,2]
[334775417,1723547452720,-1000.0,0.00013699,2]
[334775418,1723547452730,-1000.0,0.00013699,2]
[334775419,1723547452741,-1000.0,0.00013699,2]
[334775420,1723547452751,-1000.0,0.00013699,2]
[334775421,1723547452761,-1000.0,0.00013699,2]
[334775422,1723547452771,-1000.0,0.00013699,2]
[334775423,1723547452781,-1000.0,0.00013699,2]
[334775424,1723547452790,-1000.0,0.00013699,2]
[334775425,1723547452800,-1000.0,0.00013699,2]
[334775426,1723547452811,-151.0,0.00013699,2]
[334775427,1723547452821,-1000.0,0.00013699,2]
[334775428,1723547452830,-151.0,0.00013699,2]
[334775429,1723547452840,-1000.0,0.00013699,2]
[334775430,1723547452849,-151.0,0.00013699,2]
[334775431,1723547452859,-1000.0,0.00013699,2]
[334775432,1723547452869,-1000.0,0.00013699,2]
[334775433,1723547452879,-1000.0,0.00013699,2]
[334775434,1723547452889,-1000.0,0.00013699,2]
[334775435,1723547452899,-1000.0,0.00013699,2]
[334775436,1723547452910,-1000.0,0.00013699,2]
[334775437,1723547452920,-1000.0,0.00013699,2]
[334775438,1723547452931,-1000.0,0.00013699,2]
[334775439,1723547452940,-1000.0,0.00013699,2]
[334775440,1723547452951,-1000.0,0.00013699,2]
[334775441,1723547452962,-1000.0,0.00013699,2]
[334775442,1723547452972,-1000.0,0.00013699,2]
[334775443,1723547452982,-1000.0,0.00013699,2]
[334775444,1723547452992,-1000.0,0.00013699,2]
[334775445,1723547453003,-1000.0,0.00013699,2]
[334775446,1723547453014,-1000.0,0.00013699,2]
[334775447,1723547453024,-1000.0,0.00013699,2]
[334775448,1723547453036,-1000.0,0.00013699,2]
[334775449,1723547453047,-1000.0,0.00013699,2]
[334775450,1723547453057,-1000.0,0.00013699,2]
[334775451,1723547453067,-1000.0,0.00013699,2]
[334775452,1723547453077,-1000.0,0.00013699,2]
[334775453,1723547453086,-1000.0,0.00013699,2]
[334775454,1723547453096,-1000.0,0.00013699,2]
[334775455,1723547453107,-1000.0,0.00013699,2]
[334775456,1723547453117,-1000.0,0.00013699,2]
[334775457,1723547453127,-1000.0,0.00013699,2]
[334775458,1723547453137,-1000.0,0.00013699,2]
[334775459,1723547453146,-1000.0,0.00013699,2]
[334775460,1723547453156,-1000.0,0.00013699,2]
[334775461,1723547453166,-1000.0,0.00013699,2]
[334775462,1723547453176,-1000.0,0.00013699,2]
[334775463,1723547453186,-1000.0,0.00013699,2]
[334775464,1723547453198,-1000.0,0.00013699,2]
[334775465,1723547453208,-1000.0,0.00013699,2]
[334775466,1723547453218,-1000.0,0.00013699,2]
[334775467,1723547453227,-1000.0,0.00013699,2]
[334775468,1723547453237,-1000.0,0.00013699,2]
[334775469,1723547453247,-1000.0,0.00013699,2]
[334775470,1723547453258,-1000.0,0.00013699,2]
[334775471,1723547453270,-1000.0,0.00013699,2]
[334775472,1723547453280,-866.570432,0.00013699,2]
[334775473,1723547453290,-718.38383403,0.00013699,2]
[334775474,1723547453300,-718.38383403,0.00013699,2]
[334775475,1723547453311,-718.38383403,0.00013699,2]
[334775476,1723547453321,-718.38383403,0.00013699,2]
[334775477,1723547453332,-718.38383403,0.00013699,2]
[334775478,1723547453345,-718.38383403,0.00013699,2]
[334775479,1723547453355,-718.38383403,0.00013699,2]
[334775480,1723547453365,-718.38383403,0.00013699,2]
[334775481,1723547453376,-718.38383403,0.00013699,2]
[334775482,1723547453388,-718.38383403,0.00013699,2]
[334775483,1723547453400,-718.38383403,0.00013699,2]
[334775484,1723547453410,-718.38383403,0.00013699,2]
[334775485,1723547453421,-718.38383403,0.00013699,2]
[334775486,1723547453432,-718.38383403,0.00013699,2]
[334775487,1723547453441,-718.38383403,0.00013699,2]
[334775488,1723547453450,-718.38383403,0.00013699,2]
[334775489,1723547453460,-718.38383403,0.00013699,2]
[334775490,1723547453473,-718.38383403,0.00013699,2]
[334775491,1723547453484,-718.38383403,0.00013699,2]
[334775492,1723547453496,-718.38383403,0.00013699,2]
[334775493,1723547453507,-718.38383403,0.00013699,2]
[334775494,1723547453518,-718.38383403,0.00013699,2]
[334775495,1723547453528,-718.38383403,0.00013699,2]
[334775496,1723547453538,-718.38383403,0.00013699,2]
[334775497,1723547453548,-718.38383403,0.00013699,2]
[334775498,1723547453558,-718.38383403,0.00013699,2]
[334775499,1723547453568,-718.38383403,0.00013699,2]
[334775500,1723547453578,-718.38383403,0.00013699,2]
[334775501,1723547453588,-718.38383403,0.00013699,2]
[334775502,1723547453601,-718.38383403,0.00013699,2]
[334775503,1723547453611,-718.38383403,0.00013699,2]
[334775504,1723547453621,-718.38383403,0.00013699,2]
[334775505,1723547453633,-718.38383403,0.00013699,2]
[334775506,1723547453645,-718.38383403,0.00013699,2]
[334775507,1723547453656,-718.38383403,0.00013699,2]
[334775508,1723547453668,-718.38383402,0.00013699,2]
[334775509,1723547453678,-718.38383402,0.00013699,2]
[334775510,1723547453688,-500.0,0.00013972,2]
[334775511,1723547453698,-500.0,0.00013972,2]
[334775512,1723547453710,-740.77,0.00013972,2]
[334775513,1723547453721,-500.0,0.00013972,2]
[334775514,1723547453732,-500.0,0.00013972,2]
[334775515,1723547453744,-508.89044468,0.00013972,2]
[334775516,1723547453754,-500.0,0.00013972,2]
[334775517,1723547453764,-500.0,0.00013972,2]
[334775518,1723547453775,-500.0,0.00013972,2]
[334775519,1723547453787,-506.37693255,0.00013972,2]
[334775520,1723547453798,-500.0,0.00013972,2]
[334775521,1723547453809,-500.0,0.00013972,2]
[334775522,1723547453820,-170.21343717,0.00013972,2]
[334775523,1723547453829,-500.0,0.00013972,2]
[334775524,1723547453941,-500.0,0.00013972,2]
[334775525,1723547453966,-555.29638205,0.00013972,2]
[334775526,1723547453975,-500.0,0.00013972,2]
[334775527,1723547453985,-486.45266825,0.00013972,2]
[334775528,1723547453995,-500.0,0.00013972,2]
[334775529,1723547454004,-500.0,0.00013972,2]
[334775530,1723547454015,-500.0,0.00013972,2]
[334775531,1723547454024,-500.0,0.00013972,2]
[334775532,1723547454034,-546.2636575,0.00013972,2]
[334775533,1723547454043,-163.38219045,0.00013972,2]
[334775534,1723547454053,-500.0,0.00013972,2]
[334775535,1723547454062,-500.0,0.00013972,2]
[334775536,1723547454072,-500.0,0.00013972,2]
[334775537,1723547454081,-500.0,0.00013972,2]
[334775538,1723547454091,-500.0,0.00013972,2]
[334775539,1723547454100,-504.46577119,0.00013972,2]
[334775540,1723547454109,-500.0,0.00013972,2]
[334775541,1723547454118,-245.80356441,0.00013972,2]
[334775542,1723547454128,-542.21,0.00013972,2]
[334775543,1723547454137,-500.0,0.00013972,2]
[334775544,1723547454147,-500.0,0.00013972,2]
[334775545,1723547454157,-507.12995694,0.00013972,2]
[334775546,1723547454166,-500.0,0.00013972,2]
[334775547,1723547454176,-500.0,0.00013972,2]
[334775548,1723547454185,-500.0,0.00013972,2]
[334775549,1723547454194,-531.93927027,0.00013972,2]
[334775550,1723547454203,-795.11,0.00013972,2]
[334775551,1723547454213,-500.0,0.00013972,2]
[334775552,1723547454223,-503.6395211,0.00013972,2]
[334775553,1723547454233,-500.0,0.00013972,2]
[334775554,1723547454242,-506.63667381,0.00013972,2]
[334775555,1723547454252,-515.89106309,0.00013972,2]
[334775556,1723547454261,-504.932046,0.00013972,2]
[334775557,1723547454271,-500.0,0.00013972,2]
[334775558,1723547454281,-500.0,0.00013972,2]
[334775559,1723547454290,-500.0,0.00013972,2]
[334775560,1723547454299,-500.0,0.00013972,2]
[334775561,1723547454308,-500.0,0.00013972,2]
[334775562,1723547454318,-500.0,0.00013972,2]
[334775563,1723547454328,-592.56,0.00013972,2]
[334775564,1723547454338,-500.0,0.00013972,2]
[334775565,1723547454347,-561.84,0.00013972,2]
[334775566,1723547454357,-1236.77,0.00013972,2]
[334775567,1723547454367,-500.0,0.00013972,2]
[334775568,1723547454376,-500.0,0.00013972,2]
[334775569,1723547454387,-500.0,0.00013972,2]
[334775570,1723547454397,-500.0,0.00013972,2]
[334775571,1723547454407,-500.0,0.00013972,2]
[334775572,1723547454416,-500.0,0.00013972,2]
[334775573,1723547454427,-503.62100844,0.00013972,2]
[334775574,1723547454436,-504.58301167,0.00013972,2]
[334775575,1723547454446,-500.0,0.00013972,2]
[334775576,1723547454456,-500.0,0.00013972,2]
[334775577,1723547454467,-507.34804136,0.00013972,2]
[334775578,1723547454478,-1777.12,0.00013972,2]
[334775579,1723547454488,-500.0,0.00013972,2]
[334775580,1723547454503,-607.14541429,0.00013972,2]
[334775581,1723547454512,-500.0,0.00013972,2]
[334775582,1723547454521,-500.0,0.00013972,2]
[334775583,1723547454530,-500.0,0.00013972,2]
[334775584,1723547454539,-500.0,0.00013972,2]
[334775585,1723547454550,-500.0,0.00013972,2]
[334775586,1723547454559,-500.0,0.00013972,2]
[334775587,1723547454569,-500.0,0.00013972,2]
[334775588,1723547454580,-500.0,0.00013972,2]
[334775589,1723547454589,-510.22858019,0.00013972,2]
[334775590,1723547454598,-500.0,0.00013972,2]
[334775591,1723547454608,-500.0,0.00013972,2]
[334775592,1723547454617,-500.0,0.00013972,2]
[334775593,1723547454627,-500.0,0.00013972,2]
[334775594,1723547454637,-506.3500057,0.00013972,2]
[334775595,1723547454647,-500.0,0.00013972,2]
[334775596,1723547454656,-500.0,0.00013972,2]
[334775597,1723547454665,-500.0,0.00013972,2]
[334775598,1723547454675,-500.0,0.00013972,2]
[334775599,1723547454684,-500.0,0.00013972,2]
[334775600,1723547454694,-500.0,0.00013972,2]
[334775601,1723547454703,-583.29,0.00013972,2]
[334775602,1723547454713,-500.0,0.00013972,2]
[334775603,1723547454723,-497.95581423,0.00013972,2]
[334775604,1723547454734,-510.62,0.00013972,2]
[334775605,1723547454745,-515.05521888,0.00013972,2]
[334775606,1723547454754,-500.0,0.00013972,2]
[334775607,1723547454764,-500.0,0.00013972,2]
[334775608,1723547454773,-500.0,0.00013972,2]
[334775609,1723547454783,-502.28690449,0.00013972,2]
[334775610,1723547454795,-500.0,0.00013972,2]
[334775611,1723547454804,-500.0,0.00013972,2]
[334775612,1723547454814,-500.0,0.00013972,2]
[334775613,1723547454824,-561.9,0.00013972,2]
[334775614,1723547454834,-500.0,0.00013972,2]
[334775615,1723547454843,-500.0,0.00013972,2]
[334775616,1723547454853,-523.64237157,0.00013972,2]
[334775617,1723547454862,-500.0,0.00013972,2]
[334775618,1723547454872,-285.46548247,0.00013972,2]
[334775619,1723547454882,-500.0,0.00013972,2]
[334775620,1723547454892,-500.0,0.00013972,2]
[334775621,1723547454901,-510.71182565,0.00013972,2]
[334775622,1723547454911,-500.0,0.00013972,2]
[334775623,1723547454921,-815.97,0.00013972,2]
[334775624,1723547454930,-507.60818199,0.00013972,2]
[334775625,1723547454940,-500.0,0.00013972,2]
[334775626,1723547454950,-511.74447353,0.00013972,2]
[334775627,1723547454959,-500.0,0.00013972,2]
[334775628,1723547454970,-500.0,0.00013972,2]
[334775629,1723547454981,-500.0,0.00013972,2]
[334775630,1723547454997,-500.0,0.00013972,2]
[334775631,1723547455010,-500.0,0.00013972,2]
[334775632,1723547455020,-500.0,0.00013972,2]
[334775633,1723547455032,-500.0,0.00013972,2]
[334775634,1723547455043,-728.09,0.00013972,2]
[334775635,1723547455053,-500.0,0.00013972,2]
[334775636,1723547455063,-500.0,0.00013972,2]
[334775637,1723547455073,-504.4672631,0.00013972,2]
[334775638,1723547455085,-505.70706712,0.00013972,2]
[334775639,1723547455095,-500.0,0.00013972,2]
[334775640,1723547455104,-500.0,0.00013972,2]
[334775641,1723547455114,-500.0,0.00013972,2]
[334775642,1723547455124,-500.0,0.00013972,2]
[334775643,1723547455134,-500.0,0.00013972,2]
[334775644,1723547455143,-503.73544608,0.00013972,2]
[334775645,1723547455153,-500.0,0.00013972,2]
[334775646,1723547455162,-501.44520048,0.00013972,2]
[334775647,1723547455172,-500.0,0.00013972,2]
[334775648,1723547455181,-500.0,0.00013972,2]
[334775649,1723547455191,-509.77033415,0.00013972,2]
[334775650,1723547455201,-654.27,0.00013972,2]
[334775651,1723547455210,-503.80614927,0.00013972,2]
[334775652,1723547455219,-564.58,0.00013972,2]
[334775653,1723547455230,-500.0,0.00013972,2]
[334775654,1723547455240,-503.55,0.00013972,2]
[334775655,1723547455250,-500.0,0.00013972,2]
[334775656,1723547455261,-816.27,0.00013972,2]
[334775657,1723547455271,-500.0,0.00013972,2]
[334775658,1723547455281,-500.0,0.00013972,2]
[334775659,1723547455290,-500.0,0.00013972,2]
[334775660,1723547455299,-714.56,0.00013972,2]
[334775661,1723547455308,-771.75,0.00013972,2]
[334775662,1723547455318,-1407.2,0.00013972,2]
[334775663,1723547455327,-500.0,0.00013972,2]
[334775664,1723547455337,-500.0,0.00013972,2]
[334775665,1723547455346,-500.0,0.00013972,2]
[334775666,1723547455355,-1040.88,0.00013972,2]
[334775667,1723547455364,-500.0,0.00013972,2]
[334775668,1723547455375,-500.0,0.00013972,2]
[334775669,1723547455389,-1535.13,0.00013972,2]
[334775670,1723547455399,-539.85908622,0.00013972,2]
[334775671,1723547455409,-500.0,0.00013972,2]
[334775672,1723547455418,-500.0,0.00013972,2]
[334775673,1723547455428,-593.57865587,0.00013972,2]
[334775674,1723547455441,-740.2,0.00013972,2]
[334775675,1723547455451,-500.0,0.00013972,2]
[334775676,1723547455460,-1924.1,0.00013972,2]
[334775677,1723547455471,-500.0,0.00013972,2]
[334775678,1723547455481,-500.0,0.00013972,2]
[334775679,1723547455490,-1430.92,0.00013972,2]
[334775680,1723547455501,-2798.75,0.00013972,2]
[334775681,1723547455510,-500.0,0.00013972,2]
[334775682,1723547455519,-500.0,0.00013972,2]
[334775683,1723547455529,-770.1,0.00013972,2]
[334775684,1723547455538,-500.0,0.00013972,2]
[334775685,1723547455547,-500.0,0.00013972,2]
[334775686,1723547455556,-889.26,0.00013972,2]
[334775687,1723547455566,-6751.45,0.00013972,2]
[334775688,1723547455575,-833.02,0.00013972,2]
[334775689,1723547455584,-500.0,0.00013972,2]
[334775690,1723547455593,-784.34,0.00013972,2]
[334775691,1723547455603,-500.0,0.00013972,2]
[334775692,1723547455612,-500.0,0.00013972,2]
[334775693,1723547455621,-1167.77,0.00013972,2]
[334775694,1723547455631,-505.77318886,0.00013972,2]
[334775695,1723547455640,-500.0,0.00013972,2]
[334775696,1723547455650,-500.0,0.00013972,2]
[334775697,1723547455659,-2093.42,0.00013972,2]
[334775698,1723547455668,-500.0,0.00013972,2]
[334775699,1723547455678,-500.0,0.00013972,2]
[334775700,1723547455687,-500.0,0.00013972,2]
[334775701,1723547455696,-763.49,0.00013972,2]
[334775702,1723547455706,-500.0,0.00013972,2]
[334775703,1723547455715,-500.0,0.00013972,2]
[334775704,1723547455724,-500.0,0.00013972,2]
[334775705,1723547455733,-500.0,0.00013972,2]
[334775706,1723547455744,-501.14263449,0.00013972,2]
[334775707,1723547455753,-1023.0,0.00013972,2]
[334775708,1723547455762,-500.0,0.00013972,2]
[334775709,1723547455771,-500.0,0.00013972,2]
[334775710,1723547455780,-562.76371784,0.00013972,2]
[334775711,1723547455790,-909.2,0.00013972,2]
[334775712,1723547455799,-1084.41,0.00013972,2]
[334775713,1723547455809,-1124.92,0.00013972,2]
[334775714,1723547455818,-500.0,0.00013972,2]
[334775715,1723547455827,-844.3,0.00013972,2]
[334775716,1723547455836,-500.0,0.00013972,2]
[334775717,1723547455846,-500.0,0.00013972,2]
[334775718,1723547455855,-500.0,0.00013972,2]
[334775719,1723547455864,-500.0,0.00013972,2]
[334775720,1723547455874,-500.0,0.00013972,2]
[334775721,1723547455883,-4591.46,0.00013972,2]
[334775722,1723547455892,-1177.25,0.00013972,2]
[334775723,1723547455902,-1574.28,0.00013972,2]
[334775724,1723547455911,-500.0,0.00013972,2]
[334775725,1723547455920,-921.99,0.00013972,2]
[334775726,1723547455930,-500.0,0.00013972,2]
[334775727,1723547455939,-545.63,0.00013972,2]
[334775728,1723547455949,-500.0,0.00013972,2]
[334775729,1723547455958,-1095.67,0.00013972,2]
[334775730,1723547455969,-1703.11,0.00013972,2]
[334775731,1723547455980,-883.51,0.00013972,2]
[334775732,1723547455991,-722.57,0.00013972,2]
[334775733,1723547456002,-1262.86,0.00013972,2]
[334775734,1723547456011,-500.0,0.00013972,2]
[334775735,1723547456021,-1957.65,0.00013972,2]
[334775736,1723547456032,-500.0,0.00013972,2]
[334775737,1723547456044,-500.0,0.00013972,2]
[334775738,1723547456054,-627.53,0.00013972,2]
[334775739,1723547456063,-500.0,0.00013972,2]
[334775740,1723547456072,-6324.26,0.00013972,2]
[334775741,1723547456081,-500.0,0.00013972,2]
[334775742,1723547456090,-500.0,0.00013972,2]
[334775743,1723547456099,-1284.41,0.00013972,2]
[334775744,1723547456108,-500.0,0.00013972,2]
[334775745,1723547456118,-851.53,0.00013972,2]
[334775746,1723547456127,-500.0,0.00013972,2]
[334775747,1723547456136,-500.0,0.00013972,2]
[334775748,1723547456146,-503.56683525,0.00013972,2]
[334775749,1723547456155,-500.0,0.00013972,2]
[334775750,1723547456164,-1747.47,0.00013972,2]
[334775751,1723547456173,-1140.06,0.00013972,2]
[334775752,1723547456183,-500.0,0.00013972,2]
[334775753,1723547456192,-500.0,0.00013972,2]
[334775754,1723547456201,-745.88,0.00013972,2]
[334775755,1723547456210,-500.0,0.00013972,2]
[334775756,1723547456219,-500.0,0.00013972,2]
[334775757,1723547456228,-689.79,0.00013972,2]
[334775758,1723547456238,-689.96,0.00013972,2]
[334775759,1723547456248,-472.66810665,0.00013972,2]
[334775760,1723547456257,-500.0,0.00013972,2]